[Event "13th All African Rapid-ch Men 2024"]
[Site "Accra"]
[Date "2024.03.10"]
[Round "1.1"]
[White "Wanyama, Harold"]
[Black "Amin, Bassem"]
[Result "0-1"]
[ECO "E72"]
[WhiteElo "2226"]
[BlackElo "2670"]
[Annotator "TA"]
[PlyCount "44"]
[EventDate "2024.03.07"]
[EventType "rapid"]
[EventCountry "GHA"]
[SourceTitle "playchess.com"]
[Source "ChessBase"]
[SourceQuality "1"]
[TimeControl "900+10"]

{[%evp 12,44,19,0,0,0,0,-9,-20,-22,-24,-128,-143,-175,-172,-474,-468,-481,-462,-539,-536,-1518,-1438,-1545,-1535,-1908,-1970,-1610,-1614,-1346,-1193,-29994,-29995,-29995,-29996]} 1. d4 {[%emt 0:00:05]} Nf6 {[%emt 0:00:02]} 2. c4 {[%emt 0:00:02]} g6 {[%emt 0:00:02]} 3. Nc3 {[%emt 0:00:07]} Bg7 {[%emt 0:00:02]} 4. g3 {[%emt 0:00:05]} O-O {[%emt 0:00:04]} 5. Bg2 {[%emt 0:00:01]} d6 {[%emt 0:00:02]} 6. e4 {[%emt 0:00:05]} e5 {[%emt 0:01:47]} 7. Nf3 {[%emt 0:00:06]} Nc6 {[%emt 0:00:15] Und ...exd4 würde nun gewinnen.} 8. d5 {[%emt 0:00:30]} Nd4 {[%emt 0:00:02]} 9. h3 {[%emt 0:00:09]} c5 {[%emt 0:00:04][%cal Ob7b5] Die Stellung ist ausgeglichen.} 10. dxc6 {[%emt 0:00:07]} bxc6 {[%emt 0:00:05]} 11. c5 {[%emt 0:02:05]} (11. Nxd4 exd4 12. Ne2 (12. Qxd4 $2 {geht unter.} Nxe4 13. Qxe4 Re8 $19) 12... Qa5+ 13. Bd2 Qb6 $19) (11. O-O $1 $11) 11... dxc5 $17 {[%emt 0:01:01] Schwarz steht aktiver.} 12. Nxe5 {[%emt 0:00:13]} Ba6 {[%emt 0:01:28] Droht ...Re8 und aus.} 13. f4 $2 {[%emt 0:00:04]} (13. Bf1 Bxf1 14. Kxf1) 13... Nh5 $19 {[%emt 0:00:38]} 14. Kf2 {[%emt 0:00:12]} Bxe5 {[%emt 0:00:30]} 15. fxe5 {[%emt 0:00:05]} f5 {[%emt 0:00:44]} 16. Bf1 {[%emt 0:02:35]} fxe4+ {[%emt 0:00:34]} 17. Kg2 {[%emt 0:00:01] [#]} Rf3 $1 {[%emt 0:01:53]} 18. Bf4 {[%emt 0:10:04]} (18. Qe1 Rxg3+) 18... Nxf4+ {[%emt 0:00:31]} 19. gxf4 {[%emt 0:00:01] [#]} Qh4 $1 {[%emt 0:00:03]} 20. Nxe4 {[%emt 0:00:04]} Bxf1+ {[%emt 0:00:03]} 21. Rxf1 {[%emt 0:00:09]} Qxh3+ {[%emt 0:00:02]} 22. Kg1 {[%emt 0:00:07]} Qg4+ {[%emt 0:00:02] Weiß schien mit der Eröffnung nicht zurechtzukommen.   Gewichteter Fehlerwert: Weiß=1.55/Schwarz=0.14 (sehr präzise) .  Fehler:       	Weiß=2     	---        Ungenau:       	Weiß=1     	---        OK:         	Weiß=1     	Schwarz=6     Bester:       	---       	Schwarz=2} 0-1

[Event "13th All African Rapid-ch Men 2024"]
[Site "Accra"]
[Date "2024.03.10"]
[Round "1.2"]
[White "Silva, David"]
[Black "Rongwane, Gomolemo"]
[Result "1/2-1/2"]
[ECO "C50"]
[WhiteElo "2358"]
[BlackElo "2021"]
[Annotator "TA"]
[PlyCount "75"]
[EventDate "2024.03.07"]
[EventType "rapid"]
[EventCountry "GHA"]
[SourceTitle "playchess.com"]
[Source "ChessBase"]
[SourceQuality "1"]
[TimeControl "900+10"]

{[%evp 17,75,0,2,0,0,0,0,0,-10,-20,-28,-30,-8,-25,-15,-17,-8,-18,-10,-12,-22,-19,-7,-26,-4,-9,-10,-8,-6,-22,-37,-97,-111,-147,-137,-143,-144,-127,-145,-143,-144,-155,-155,-256,-250,-266,-101,-98,-103,-104,-106,-94,-91,-70,-22,-22,-14,-14,-12,-427]} 1. e4 {[%emt 0:00:02]} e5 {[%emt 0:00:02]} 2. Nf3 {[%emt 0:00:01]} Nc6 {[%emt 0:00:02]} 3. Bc4 {[%emt 0:00:02]} Nf6 {[%emt 0:00:02]} 4. d3 {[%emt 0:00:02]} Bc5 {[%emt 0:00:03]} 5. Nc3 {[%emt 0:00:08]} h6 {[%emt 0:00:11]} 6. a3 {[%emt 0:00:02]} a6 {[%emt 0:00:01]} 7. Be3 {[%emt 0:00:30]} Ba7 {[%emt 0:00:13]} 8. O-O {[%emt 0:00:08]} O-O {[%emt 0:00:02]} 9. h3 {[%emt 0:00:07]} d6 {[%emt 0:00:02]} 10. Nd5 {[%emt 0:00:07]} Nxd5 {[%emt 0:00:16]} 11. Bxd5 {[%emt 0:00:02]} Ne7 {[%emt 0:00:03][%cal Bc6e7,Be7g6,Bg6f4][%mdl 32]} 12. Ba2 {[%emt 0:00:01]} Ng6 {[%emt 0:00:04]} 13. Bxa7 {[%emt 0:00:10]} Rxa7 {[%emt 0:00:03]} 14. Qd2 {[%emt 0:00:18]} Qf6 {[%emt 0:00:07][%cal Oc8h3]} 15. Qe3 {[%emt 0:00:01]} Ra8 {[%emt 0:00:01]} 16. Kh2 $1 {[%emt 0:00:02]} Nf4 {[%emt 0:00:07]} 17. Ng1 {[%emt 0:00:16]} Be6 {[%emt 0:00:22]} 18. g3 {[%emt 0:00:11]} Bxa2 {[%emt 0:00:19]} 19. Rxa2 {[%emt 0:00:03]} Ne6 {[%emt 0:00:03]} 20. f4 {[%emt 0:00:18]} exf4 {[%emt 0:00:14]} 21. gxf4 {[%emt 0:00:01]} Qd4 {[%emt 0:00:06]} 22. Qxd4 {[%emt 0:00:15]} Nxd4 {[%emt 0:00:02]} 23. f5 {[%emt 0:00:13]} Rfe8 $36 {[%emt 0:00:21][%mdl 2048] White is under pressure.} 24. Raa1 {[%emt 0:01:12] [#]} (24. b4 $15) 24... d5 $1 $17 {[%emt 0:00:38]} 25. c3 {[%emt 0:02:17]} Nb3 {[%emt 0:00:13]} 26. Rae1 {[%emt 0:00:01]} dxe4 {[%emt 0:00:08]} 27. Rxe4 {[%emt 0:00:57]} Rxe4 {[%emt 0:01:16]} (27... Nd2 28. Rxe8+ Rxe8 29. Rf2) 28. dxe4 {[%emt 0:00:01][%mdl 4096] Endgame. [#] KRN-KRN} Re8 $1 {[%emt 0:00:01]} 29. Rd1 {[%emt 0:00:47] Repels Nd2} Nc5 $1 {[%emt 0:00:52] Wards off Rd7} 30. e5 {[%emt 0:00:20]} (30. Kg2 $17 {keeps fighting.}) 30... Rxe5 $19 {[%emt 0:00:21]} 31. b4 {[%emt 0:00:05]} Na4 $2 {[%emt 0:01:16]} (31... Ne4 $19 32. Rd8+ Kh7) 32. Rd8+ $17 {[%emt 0:00:02]} Kh7 {[%emt 0:00:03]} 33. Rd7 {[%emt 0:00:01][%csl LRc7,LRf7]} Nxc3 {[%emt 0:01:44]} 34. Rxc7 {[%emt 0:00:05]} Nd5 {[%emt 0:01:49]} 35. Rxf7 {[%emt 0:00:14]} Nf6 {[%emt 0:00:11]} (35... Re7 $15 36. Rf8 Re3) 36. Rxb7 {[%emt 0:00:18] The position is equal.} Rxf5 {[%emt 0:00:03]} 37. Kg2 {[%emt 0:00:31]} Rg5+ {[%emt 0:00:43]} 38. Kf3 $2 {[%emt 0:01:26][%mdl 40960] Weighted Error Value: White=0.11 (very precise) /Black=0.09 (flawless) .  Loses game:     	White=1     	---        Missed win:     	---       	Black=1      Mistake:       	White=2     	Black=1      Inaccurate:     	White=1     	---        OK:         	White=7     	Black=11     Best:        	White=2     	Black=2      Strong:       	White=1     	Black=2     . An unexpected result.} (38. Kh2 $11 {and White is okay.}) 1/2-1/2

[Event "13th All African Rapid-ch Men 2024"]
[Site "Accra"]
[Date "2024.03.10"]
[Round "1.3"]
[White "Pereira, Sergio Murilo de Ara"]
[Black "Arab, Adlane"]
[Result "0-1"]
[ECO "B23"]
[WhiteElo "2115"]
[BlackElo "2477"]
[Annotator "TA"]
[PlyCount "96"]
[EventDate "2024.03.07"]
[EventType "rapid"]
[EventCountry "GHA"]
[SourceTitle "playchess.com"]
[Source "ChessBase"]
[SourceQuality "1"]
[TimeControl "900+10"]

{[%evp 9,96,0,0,0,60,32,27,-19,-2,-13,2,-13,-11,-5,0,-38,-32,-34,0,-63,-49,-64,0,-12,0,-16,-6,-18,32,14,12,-10,66,22,28,28,25,29,33,18,22,0,0,0,0,0,0,0,0,0,-1,-39,-36,-61,-56,-58,-8,-8,-10,-7,20,21,26,0,0,0,0,-16,-16,-16,-16,-16,-16,-101,0,0,0,-6,19,-615,-606,-598,-596,-608,-600,-615,-607,-907,-854]} 1. e4 {[%emt 0:00:01]} c5 {[%emt 0:00:01]} 2. Nc3 {[%emt 0:00:02]} Nc6 {[%emt 0:00:03]} 3. Bb5 {[%emt 0:00:01]} Nd4 {[%emt 0:00:05]} 4. Bc4 {[%emt 0:00:02]} e6 {[%emt 0:00:04]} 5. Nge2 {[%emt 0:00:02]} Nf6 {[%emt 0:00:25]} 6. O-O {[%emt 0:00:03]} Nxe2+ {[%emt 0:00:15]} (6... a6 $11) 7. Qxe2 {[%emt 0:00:23]} d6 {[%emt 0:00:02]} 8. e5 {[%emt 0:04:31]} (8. Rd1 {was preferrable.}) 8... dxe5 $11 {[%emt 0:00:26]} 9. Qxe5 {[%emt 0:00:03]} a6 {[%emt 0:00:19] Against Nb5} 10. a4 {[%emt 0:00:32]} Bd6 {[%emt 0:00:15]} 11. Qe2 {[%emt 0:00:08]} O-O {[%emt 0:00:18]} 12. Ne4 {[%emt 0:00:15]} Nxe4 {[%emt 0:00:39]} 13. Qxe4 {[%emt 0:00:03]} Rb8 {[%emt 0:00:48]} 14. Bd3 {[%emt 0:01:21]} (14. a5 $11) 14... f5 $15 {[%emt 0:00:21]} 15. Qe2 {[%emt 0:00:51]} e5 {[%emt 0:00:09]} ({Better is} 15... Bd7 $15) 16. Bc4+ {[%emt 0:00:23]} Kh8 {[%emt 0:00:03]} 17. b3 {[%emt 0:00:04]} Bd7 {[%emt 0:00:28]} 18. Bb2 {[%emt 0:00:32]} Qe7 {[%emt 0:01:36]} (18... Qc7 $11) 19. Rae1 {[%emt 0:00:20]} e4 {[%emt 0:00:59]} 20. f4 {[%emt 0:02:07]} Bc6 {[%emt 0:00:29]} (20... b5 $11 21. axb5 axb5) 21. a5 {[%emt 0:00:13]} (21. Qh5 {looks sharper.} b5 22. axb5 axb5 23. Re3) 21... Qc7 {[%emt 0:10:55][%csl LRa5,LRf4]} 22. Qh5 {[%emt 0:02:24]} Bxf4 {[%emt 0:00:00]} 23. Be6 {[%emt 0:00:08]} Be8 {[%emt 0:00:00]} (23... Bxd2 24. Bxf5 Rxf5 25. Qxf5 $18) 24. Qh4 {[%emt 0:01:00]} Bxd2 {[%emt 0:00:00]} 25. Bxf5 {[%emt 0:00:32]} (25. Rxf5 $2 Bg6 (25... Bxe1 26. Rxf8#) 26. Ref1 Be3+ (26... Bxf5 $2 27. Bxf5 Be3+ 28. Kh1 $19) 27. Kh1 Bxf5 28. Bxf5 h6 $19 (28... Qxa5 29. Qxh7#)) (25. Re2 $5 c4 (25... Bxa5 $2 26. Bxf5 Rxf5 27. Rxf5 $18) (25... Qxa5 $2 26. Rxf5 $18) 26. Rxf5 $14 (26. Rxd2 c3 $11)) 25... Rxf5 {[%emt 0:00:00]} 26. Rxf5 {[%emt 0:00:08][%cal Rf5f8] [#]} Bg6 $36 {[%emt 0:00:00][%mdl 2048] Black has the initiative. Chess con chili.} 27. Re5 {[%emt 0:01:10]} Bxe1 {[%emt 0:00:00]} 28. Qxe1 {[%emt 0:00:01]} Rd8 {[%emt 0:00:00]} 29. h3 {[%emt 0:00:23]} h6 {[%emt 0:00:00]} 30. Qg3 {[%emt 0:00:37]} Kh7 {[%emt 0:00:00]} 31. Qc3 {[%emt 0:00:43]} Rd1+ {[%emt 0:00:00]} 32. Kh2 {[%emt 0:00:01]} Qf7 {[%emt 0:00:00]} (32... Rd5 $15) 33. Qe3 $1 $11 {[%emt 0:00:59]} Rb1 {[%emt 0:00:00]} 34. Bc3 {[%emt 0:00:11]} Rf1 {[%emt 0:00:00]} 35. Rxc5 {[%emt 0:00:16]} Qe7 {[%emt 0:00:00]} 36. Re5 {[%emt 0:00:40]} Qc7 {[%emt 0:00:00]} 37. Qg3 {[%emt 0:00:00]} Rc1 {[%emt 0:00:00]} 38. Bd4 {[%emt 0:00:07]} Rxc2 {[%emt 0:00:00]} 39. Re6 {[%emt 0:00:04]} Qxg3+ 40. Kxg3 {[%emt 0:00:00][%mdl 4096] Endgame. Threatens to win with Re7. KRB-KRB} Rd2 {[%emt 0:00:00]} 41. Rd6 {[%emt 0:00:20]} (41. Be3 $11 {remains equal.} Rd3 42. Kf4) 41... Bf7 {[%emt 0:00:00]} (41... Rd3+ $17 42. Kh2 e3 (42... Rxb3 43. Rd7 $11)) 42. Rd7 {[%emt 0:00:08][%csl LRb7,LRf7]} Kg6 {[%emt 0:00:00]} (42... Bxb3 43. Rxg7+ Kh8 44. Rxb7+ Rxd4 45. Rxb3) 43. b4 {[%emt 0:00:14][%cal Og3f4]} h5 {[%emt 0:00:00]} 44. Rd6+ $2 {[%emt 0:00:05][%mdl 8192] This move loses the game for White.} (44. Kf4 $11) 44... Kf5 $19 {[%emt 0:00:00][%cal Oh5h4] ...h4+! would now be deadly. Black is clearly winning.} 45. Rd7 {[%emt 0:00:06]} Ke6 {[%emt 0:00:00]} 46. Rd8 {[%emt 0:00:06] [#]} Rd3+ $1 {[%emt 0:00:00]} ({Avoid the trap} 46... Ke7 $2 47. Bf6+ Kxf6 48. Rxd2 $18) 47. Kf4 {[%emt 0:00:08]} Ke7 {[%emt 0:00:00]} 48. Bf6+ {[%emt 0:00:02]} gxf6 {[%emt 0:00:00] Weighted Error Value: White=0.36/Black=0.14 (very precise) .  Loses game:     	White=1     	---        Mistake:       	White=3     	Black=6      Inaccurate:     	White=5     	Black=2      OK:         	White=8     	Black=15     Best:        	White=4     	Black=6      Strong:       	White=1     	Black=1} 0-1

[Event "13th All African Rapid-ch Men 2024"]
[Site "Accra"]
[Date "2024.03.10"]
[Round "1.4"]
[White "Rakotomaharo, Fy Antenaina"]
[Black "Cogan, Nicolas"]
[Result "1-0"]
[ECO "A46"]
[WhiteElo "2454"]
[BlackElo "2070"]
[Annotator "TA"]
[PlyCount "72"]
[EventDate "2024.03.07"]
[EventType "rapid"]
[EventCountry "GHA"]
[SourceTitle "playchess.com"]
[Source "ChessBase"]
[SourceQuality "1"]
[TimeControl "900+10"]

{[%evp 11,72,20,12,0,33,17,23,20,52,25,32,47,44,32,41,15,19,21,30,1,39,13,33,17,29,2,38,17,36,25,29,33,31,27,103,98,235,130,139,159,443,134,270,284,289,235,245,220,630,656,913,918,917,877,969,748,696,633,795,793,1111,1016,5385]} 1. d4 {[%emt 0:00:03]} Nf6 {[%emt 0:00:46]} 2. Nf3 {[%emt 0:00:04]} e6 {[%emt 0:00:12]} 3. Bg5 {[%emt 0:00:05]} b6 {[%emt 0:01:16]} 4. e4 {[%emt 0:00:23]} h6 {[%emt 0:00:11]} 5. Bxf6 {[%emt 0:00:02]} Qxf6 {[%emt 0:00:32]} 6. Bd3 {[%emt 0:00:46]} Bb7 {[%emt 0:00:15]} 7. c3 {[%emt 0:01:03]} d6 {[%emt 0:00:49]} 8. Qe2 {[%emt 0:00:13]} Nd7 {[%emt 0:00:28]} 9. Nbd2 {[%emt 0:00:56] White has an edge.} g5 {[%emt 0:01:00]} 10. e5 {[%emt 0:02:00]} Qe7 {[%emt 0:00:11]} 11. exd6 {[%emt 0:00:20]} cxd6 {[%emt 0:00:04] [#] And now ...g4 would win.} 12. Be4 {[%emt 0:00:02]} Bxe4 {[%emt 0:01:52]} 13. Qxe4 {[%emt 0:00:36]} d5 {[%emt 0:00:08]} 14. Qe2 {[%emt 0:00:13]} Bg7 {[%emt 0:00:32]} 15. h3 {[%emt 0:00:41]} Qd6 {[%emt 0:01:52][%cal Ob6b5]} 16. a4 {[%emt 0:00:13]} a6 {[%emt 0:00:30]} 17. O-O {[%emt 0:00:18]} O-O {[%emt 0:00:10]} 18. Rfe1 {[%emt 0:00:06]} Rfb8 {[%emt 0:00:29]} 19. h4 {[%emt 0:00:11]} Qf4 {[%emt 0:01:48]} 20. hxg5 {[%emt 0:00:53]} hxg5 {[%emt 0:00:10]} 21. Nf1 {[%emt 0:00:03]} Bf6 {[%emt 0:02:05]} 22. Ng3 {[%emt 0:00:46]} Qg4 {[%emt 0:00:48]} (22... Be7 $11 {keeps the balance.}) 23. c4 $16 {[%emt 0:01:57]} dxc4 {[%emt 0:00:48]} (23... Qf4 $16) 24. Qxc4 {[%emt 0:00:04]} (24. Qc2 $18 {Re4 would now be deadly.} Qf4 (24... Bxd4 $2 25. Nxd4 Qxd4 26. Rad1 $18) 25. Re4) 24... Rc8 {[%emt 0:00:28]} 25. Qd3 {[%emt 0:00:15] Hoping for Re4.} Rd8 $2 {[%emt 0:00:17]} (25... Qf4 $16 {was necessary.} 26. Rad1 Be7) 26. Qb3 $2 {[%emt 0:00:59]} (26. Re4 $18 {is more deadly.} Nc5 27. dxc5 Rxd3 28. Rxg4) 26... Qf4 {[%emt 0:00:40] [#] This move loses the game for Black.} (26... Bxd4 $16 {might work better.} 27. Re4 Qxg3 28. Rxd4 Qc7 (28... Nc5 $2 29. Qe3 $18)) 27. Re4 $1 $18 {[%emt 0:00:08]} Qd6 {[%emt 0:00:07]} 28. Qe3 {[%emt 0:00:03][%cal Oe4g4]} Nf8 {[%emt 0:00:19]} 29. Nh5 {[%emt 0:00:23]} ({Less strong is} 29. Nxg5 Bxd4 30. Qf3 f5 $16) 29... Be7 {[%emt 0:00:33]} (29... Qe7 30. Ne5 Bxe5 31. Rxe5 (31. dxe5 Ng6 $18) 31... Nh7) 30. Nxg5 {[%emt 0:00:43] aiming for Nf3. White is clearly winning.} f5 {[%emt 0:00:18]} 31. Rxe6 {[%emt 0:00:59]} Nxe6 {[%emt 0:00:19]} 32. Nxe6 {[%emt 0:00:03][%cal Oe3h6] Excellent horsemanship.} Kf7 {[%emt 0:00:19]} 33. Nxd8+ {[%emt 0:00:30]} Rxd8 {[%emt 0:00:01]} 34. Re1 {[%emt 0:00:26] Black must now prevent Qh3.} Rh8 {[%emt 0:00:21]} 35. Qf3 {[%emt 0:00:02]} f4 {[%emt 0:00:10]} 36. Nxf4 {[%emt 0:01:39] Strongly threatening Nd5+.} Bf6 {[%emt 0:00:10] Weighted Error Value: White=0.34/Black=0.60.  Loses game:     	---       	Black=1      Missed win:     	White=1     	---        Mistake:       	White=1     	Black=4      Inaccurate:     	White=5     	Black=5      OK:         	White=3     	Black=6      Best:        	White=2     	Black=1      Strong:       	White=1     	---} 1-0

[Event "13th All African Rapid-ch Men 2024"]
[Site "Accra"]
[Date "2024.03.10"]
[Round "1.5"]
[White "Oluka Robert Mcligeyo"]
[Black "KIGIGHA, Bomo Lovet"]
[Result "0-1"]
[ECO "D13"]
[WhiteElo "2041"]
[BlackElo "2231"]
[Annotator "TA"]
[PlyCount "82"]
[EventDate "2024.03.07"]
[EventType "rapid"]
[EventCountry "GHA"]
[SourceTitle "playchess.com"]
[Source "ChessBase"]
[SourceQuality "1"]
[TimeControl "900+10"]

{[%evp 12,82,17,12,48,20,15,8,54,27,55,58,64,64,68,58,61,38,45,0,0,0,30,26,20,11,13,0,0,0,0,0,45,-99,-102,-108,-112,-99,-93,-98,0,0,0,0,0,0,0,0,0,-6,-11,-93,0,-106,-105,-151,-141,-160,-173,-204,-196,-218,-196,-195,-208,-266,-266,-396,-410,-405,-416,-1160,-1075]} 1. d4 {[%emt 0:00:02]} d5 {[%emt 0:00:02]} 2. c4 {[%emt 0:00:02]} c6 {[%emt 0:00:03]} 3. cxd5 {[%emt 0:00:01]} cxd5 {[%emt 0:00:03]} 4. Nf3 {[%emt 0:00:01]} Nf6 {[%emt 0:00:04]} 5. Nc3 {[%emt 0:00:01]} a6 {[%emt 0:00:28]} 6. Bf4 {[%emt 0:00:02]} Nc6 {[%emt 0:00:02]} 7. Rc1 {[%emt 0:00:02]} Qb6 {[%emt 0:00:24]} 8. Na4 {[%emt 0:01:23]} Qa5+ {[%emt 0:00:11]} 9. Bd2 {[%emt 0:00:02]} Qc7 {[%emt 0:00:02]} (9... Qd8 $11) 10. e3 {[%emt 0:00:13]} Nd7 {[%emt 0:01:10]} 11. Bd3 {[%emt 0:00:13]} e6 $1 {[%emt 0:00:02]} 12. O-O {[%emt 0:00:11]} Bd6 {[%emt 0:00:01]} 13. Qc2 {[%emt 0:01:12][%cal Oe3e4]} h6 {[%emt 0:00:13]} 14. b4 {[%emt 0:01:01]} O-O {[%emt 0:01:42]} 15. b5 {[%emt 0:00:26]} axb5 {[%emt 0:00:02]} 16. Bxb5 {[%emt 0:00:02]} Ba3 {[%emt 0:00:41]} 17. Rb1 {[%emt 0:01:24]} Nf6 {[%emt 0:01:59]} 18. Ne5 {[%emt 0:11:52][%cal Rb5c6]} Ne4 {[%emt 0:01:07]} 19. Bb4 {[%emt 0:00:00]} Bxb4 {[%emt 0:00:14]} 20. Rxb4 {[%emt 0:00:00]} (20. Bxc6 $2 {too greedy.} Ba5 21. Nc5 Nxc5 (21... bxc6 $2 22. Nxe4 dxe4 23. Rfc1 $19) 22. Qxc5 bxc6 $19) 20... Qa5 {[%emt 0:00:12]} 21. Rb2 {[%emt 0:00:00]} Nb4 {[%emt 0:01:27]} (21... Nxe5 $5 22. dxe5 b6 $16) 22. Qb3 {[%emt 0:00:00]} (22. Qe2 $14 {keeps the upper hand.}) 22... Qxb5 $17 {[%emt 0:00:18]} 23. Nc3 {[%emt 0:00:00]} Nxc3 {[%emt 0:02:51]} 24. Qxc3 {[%emt 0:00:00]} Ra4 {[%emt 0:02:19]} 25. a3 {[%emt 0:00:00][%cal Of1b1] [#]} Bd7 $1 {[%emt 0:02:08]} 26. Rxb4 $11 {[%emt 0:00:10]} (26. Nxd7 Qxd7) 26... Rxb4 {[%emt 0:00:01]} 27. Qxb4 {[%emt 0:00:02]} Qxb4 {[%emt 0:00:19]} 28. axb4 {[%emt 0:00:02][%mdl 4096] Endgame. KRB-KRN} Bb5 {[%emt 0:00:00]} 29. Rc1 {[%emt 0:00:01]} f6 {[%emt 0:00:02]} 30. Ng6 {[%emt 0:00:11]} Ra8 {[%emt 0:00:03]} 31. h3 {[%emt 0:00:16] [#]} (31. Rc8+ $11 Rxc8 32. Ne7+ Kf8 33. Nxc8) 31... Kf7 {[%emt 0:00:01]} (31... Bc4 $1 $17 32. e4 Ra4 33. exd5 exd5 (33... Rxb4 $2 {loses.} 34. d6 $18) (33... Bxd5 34. Ne7+ Kh7 35. Nxd5 $11)) 32. Nf4 {[%emt 0:00:09]} (32. Rc5 $1 $11 {keeps the balance.}) 32... Bc4 $17 {[%emt 0:00:02]} 33. Rb1 {[%emt 0:00:34]} (33. g4 $142) 33... Ra2 {[%emt 0:00:07]} 34. h4 {[%emt 0:00:08]} e5 {[%emt 0:00:15]} 35. dxe5 {[%emt 0:00:02]} fxe5 {[%emt 0:00:01]} 36. Nh5 {[%emt 0:00:11]} b5 {[%emt 0:00:11]} 37. Ng3 {[%emt 0:00:04]} Ke6 {[%emt 0:00:12]} 38. Nf1 {[%emt 0:00:35]} d4 {[%emt 0:00:02]} 39. exd4 {[%emt 0:00:08]} (39. f3 $142) 39... exd4 $19 {[%emt 0:00:02]} 40. Rd1 {[%emt 0:00:30]} Rb2 {[%emt 0:00:16]} 41. Nd2 {[%emt 0:00:36]} (41. g3 $142) 41... Be2 {[%emt 0:00:18] Weighted Error Value: White=0.38/Black=0.15 (very precise) .  Mistake:       	White=6     	Black=3      Inaccurate:     	White=3     	Black=3      OK:         	White=10    	Black=18     Best:        	---       	Black=3      Strong:       	---       	Black=1} (41... Rxb4 42. Re1+ Kd6 43. Re8 $19) 0-1